Workbook

Sheet 11-18 лет
A1: СОГЛАСОВАНО | O1: УТВЕРЖДЕНО
A6: Меню для организации 2-х разового питания детей возрасте от 11 до 18 лет в образовательных учреждениях Мензелинского района РТ на 1 полугодие 2025-2026 учебный год.
A8: 1 день, 1 неделя
A9: № рецептуры | B9: Прием пищи, наименование блюда | C9: Масса | D9: Пищевые вещества | G9: Энергетическая ценность | H9: Витамины | M9: Минеральные вещества
D10: Белки | E10: Жиры | F10: Углеводы | H10: B1 | I10: B2 | J10: A | K10: D | L10: C | M10: Na | N10: K | O10: Ca | P10: Mg | Q10: P | R10: Fe | S10: I | T10: Se | U10: F
C11: г | D11: г | E11: г | F11: г | G11: ккал | H11: мг | I11: мг | J11: мкг рет.экв | K11: мкг | L11: мг | M11: мг | N11: мг | O11: мг | P11: мг | Q11: мг | R11: мг | S11: мкг | T11: мкг | U11: мкг
B12: Понедельник, 1 неделя
B13: Завтрак | C13: 11-18
A14: 54-13з | B14: Салат из свеклы отварной с растительным маслом | C14: 100 | D14: 1.34 | E14: 4.48 | F14: 7.61 | G14: 76.1 | H14: 0.01 | I14: 0.03 | J14: 1.14 | K14: 0 | L14: 4 | M14: 131 | N14: 227 | O14: 32 | P14: 18 | Q14: 36 | R14: 1.2 | S14: 19.98 | T14: 0.6 | U14: 19
A15: 54-11г-2020 | B15: Картофельное пюре | C15: 180 | D15: 3.69 | E15: 6.37 | F15: 23.79 | G15: 167.3 | H15: 0.14 | I15: 0.12 | J15: 28.55 | K15: 0.11 | L15: 12 | M15: 195 | N15: 750 | O15: 47 | P15: 34 | Q15: 101 | R15: 1.2 | S15: 34.15 | T15: 1 | U15: 51.35
A16: № Т/К 272 | B16: Котлета рубленная из говядины с соусом | C16: 65/35 | D16: 9.3 | E16: 7.1 | F16: 11.8 | G16: 148.6 | H16: 0 | I16: 0 | J16: 0 | K16: 0 | L16: 1.4 | M16: 0 | N16: 0 | O16: 16 | P16: 19.2 | Q16: 97 | R16: 1.7 | S16: 0 | T16: 0 | U16: 0
A17: 54-2гн-2020 | B17: Чай с сахаром | C17: 200 | D17: 0.2 | E17: 0 | F17: 6.4 | G17: 26.8 | H17: 0 | I17: 0.01 | J17: 0.3 | K17: 0 | L17: 0.04 | M17: 0.68 | N17: 20.76 | O17: 66.08 | P17: 3.83 | Q17: 7.18 | R17: 0.73 | S17: 0 | T17: 0 | U17: 0
A18: Пром. | B18: Хлеб пшеничный | C18: 20 | D18: 1.52 | E18: 0.16 | F18: 9.84 | G18: 46.9 | H18: 0.02 | I18: 0.01 | J18: 0 | K18: 0 | L18: 0 | M18: 100 | N18: 19 | O18: 4 | P18: 3 | Q18: 13 | R18: 0.2 | S18: 0.64 | T18: 1.2 | U18: 2.9
A19: Пром. | B19: Хлеб ржаной | C19: 20 | D19: 1.3 | E19: 0.2 | F19: 6.7 | G19: 34.2 | H19: 0.04 | I19: 0.02 | J19: 0 | K19: 0 | L19: 0 | M19: 122 | N19: 49 | O19: 7 | P19: 9.4 | Q19: 31.6 | R19: 0.78 | S19: 0 | T19: 6.18 | U19: 0
B20: Итого за завтрак | C20: 620 | D20: =SUM(D14:D19) -> 17.35 | E20: =SUM(E14:E19) -> 18.31 | F20: 66.14 | G20: 499.9 | H20: 0.21 | I20: 0.19 | J20: 29.99 | K20: 0.11 | L20: 17.44 | M20: 548.68 | N20: 1065.76 | O20: 172.08 | P20: 87.43 | Q20: 285.78 | R20: 5.81 | S20: 54.77 | T20: 8.98 | U20: 73.25
B21: Обед | C21: 11-18
A22: 54-7з-2020 | B22: Салат из белокочанной капусты с растительным маслом | C22: 60 | D22: 1.5 | E22: 6.1 | F22: 6.2 | G22: 85.8 | H22: 0.03 | I22: 0.04 | J22: 122.25 | K22: 0 | L22: 34.78 | M22: 88.69 | N22: 247.73 | O22: 40.39 | P22: 15.18 | Q22: 30.31 | R22: 0.55 | S22: 10.73 | T22: 0.26 | U22: 12.66
A23: № Т/к 100 | B23: Суп картофельный с вермишелью | C23: 250 | D23: 10 | E23: 7.35 | F23: 30.2 | G23: 214.4 | H23: 0.1 | I23: 0 | J23: 0.2 | K23: 0 | L23: 6.6 | M23: 0 | N23: 0 | O23: 23.9 | P23: 23.4 | Q23: 57.7 | R23: 1.1 | S23: 0 | T23: 0 | U23: 0
A24: т/к №410 | B24: Треугольник П/Ф | C24: 70 | D24: 5.7 | E24: 5 | F24: 29.8 | G24: 221.7 | H24: 0.1 | I24: 0 | J24: 0 | K24: 0 | L24: 1.5 | M24: 0 | N24: 0 | O24: 26.8 | P24: 25.7 | Q24: 100.5 | R24: 1.5 | S24: 0 | T24: 0 | U24: 0
A25: 54-4гн-2020 | B25: Чай с молоком и сахаром | C25: 200 | D25: 1.6 | E25: 1.1 | F25: 8.6 | G25: 50.9 | H25: 0.01 | I25: 0.07 | J25: 6.9 | K25: 0 | L25: 0.3 | M25: 19.68 | N25: 81.35 | O25: 103.48 | P25: 9.92 | Q25: 46.33 | R25: 0.78 | S25: 4.5 | T25: 0.88 | U25: 10
A26: Пром. | B26: Хлеб ржаной | C26: 20 | D26: 1.3 | E26: 0.2 | F26: 6.7 | G26: 34.2 | H26: 0.04 | I26: 0.02 | J26: 0 | K26: 0 | L26: 0 | M26: 122 | N26: 49 | O26: 7 | P26: 9.4 | Q26: 31.6 | R26: 0.78 | S26: 0 | T26: 6.18 | U26: 0
B27: Итого за обед | C27: =SUM(C22:C26) -> 600 | D27: 20.1 | E27: 19.75 | F27: 81.5 | G27: 607 | H27: 0.28 | I27: 0.13 | J27: 129.35 | K27: 0 | L27: 43.18 | M27: 230.37 | N27: 378.08 | O27: 201.57 | P27: 83.6 | Q27: 266.44 | R27: 4.71 | S27: 15.23 | T27: 7.32 | U27: 22.66
B28: Итого за день | C28: =C27+C20 -> 1220 | D28: 37.45 | E28: 38.06 | F28: 147.64 | G28: 1106.9 | H28: 0.49 | I28: 0.32 | J28: 159.34 | K28: 0.11 | L28: 60.62 | M28: 779.05 | N28: 1443.84 | O28: 373.65 | P28: 171.03 | Q28: 552.22 | R28: 10.52 | S28: 70 | T28: 16.3 | U28: 95.91
A30: 2 день, 1 неделя
A31: № рецептуры | B31: Прием пищи, наименование блюда | C31: Масса | D31: Пищевые вещества | G31: Энергетическая ценность | H31: Витамины | M31: Минеральные вещества
D32: Белки | E32: Жиры | F32: Углеводы | H32: B1 | I32: B2 | J32: A | K32: D | L32: C | M32: Na | N32: K | O32: Ca | P32: Mg | Q32: P | R32: Fe | S32: I | T32: Se | U32: F
C33: г | D33: г | E33: г | F33: г | G33: ккал | H33: мг | I33: мг | J33: мкг рет.экв | K33: мкг | L33: мг | M33: мг | N33: мг | O33: мг | P33: мг | Q33: мг | R33: мг | S33: мкг | T33: мкг | U33: мкг
B34: Вторник, 1 неделя
B35: Завтрак | C35: 11-18
A36: Пром. | B36: Кондитерское изделие (простая сушка, пряник, печенье, вафли) | C36: 30 | D36: 1.42 | E36: 0.17 | F36: 8.94 | G36: 43 | H36: 0.03 | I36: 0.01 | J36: 0 | K36: 0 | L36: 0 | M36: 79 | N36: 24 | O36: 4 | P36: 6 | Q36: 16 | R36: 0.4 | S36: 0 | T36: 0 | U36: 0
A37: № Т/к 67 | B37: Щи из свежей капусты с картофелем | C37: 250 | D37: 1.9 | E37: 5.1 | F37: 9.3 | G37: 90.5 | H37: 0 | I37: 0 | J37: 0.2 | K37: 0 | L37: 12.4 | M37: 0 | N37: 0 | O37: 41.5 | P37: 22 | Q37: 42.7 | R37: 1.1 | S37: 0 | T37: 0 | U37: 0
A38: № Т/к 438 | B38: Напиток яблочный | C38: 200 | D38: 0.1 | E38: 0.1 | F38: 13.9 | G38: 57.8 | H38: 0 | I38: 0 | J38: 0 | K38: 0 | L38: 1 | M38: 0 | N38: 0 | O38: 12.3 | P38: 3.7 | Q38: 2.4 | R38: 0.5 | S38: 0 | T38: 0 | U38: 0
A39: Пром. | B39: Хлеб пшеничный | C39: 20 | D39: 1.52 | E39: 0.16 | F39: 9.84 | G39: 46.9 | H39: 0.02 | I39: 0.01 | J39: 0 | K39: 0 | L39: 0 | M39: 100 | N39: 19 | O39: 4 | P39: 3 | Q39: 13 | R39: 0.2 | S39: 0.64 | T39: 1.2 | U39: 2.9
A40: Пром. | B40: Хлеб ржаной | C40: 20 | D40: 1.3 | E40: 0.2 | F40: 6.7 | G40: 34.2 | H40: 0.04 | I40: 0.02 | J40: 0 | K40: 0 | L40: 0 | M40: 122 | N40: 49 | O40: 7 | P40: 9.4 | Q40: 31.6 | R40: 0.78 | S40: 0 | T40: 6.18 | U40: 0
B41: Итого за завтрак | C41: =SUM(C36:C40) -> 520 | D41: =SUM(D36:D40) -> 6.24 | E41: =SUM(E36:E40) -> 5.73 | F41: 48.68 | G41: 272.4 | H41: 0.09 | I41: 0.04 | J41: 0.2 | K41: 0 | L41: 13.4 | M41: 301 | N41: 92 | O41: 68.8 | P41: 44.1 | Q41: 105.7 | R41: 2.98 | S41: 0.64 | T41: 7.38 | U41: 2.9
B42: Обед | C42: 11-18
A43: №Т/К 41 | B43: Салат из моркови с сахаром и растительным маслом | C43: 60 | D43: 0.5 | E43: 6.1 | F43: 4.3 | G43: 74.3 | H43: 0.03 | I43: 0.03 | J43: 732.9 | K43: 0 | L43: 3.63 | M43: 89.79 | N43: 123.26 | O43: 13.5 | P43: 15.57 | Q43: 22.38 | R43: 0.66 | S43: 10.19 | T43: 0.09 | U43: 21.57
A44: 54-4г-2020 | B44: Каша гречневая рассыпчатая | C44: 180 | D44: 9.87 | E44: 7.61 | F44: 43.12 | G44: 280.5 | H44: 0.26 | I44: 0.14 | J44: 23.02 | K44: 0.11 | L44: 0 | M44: 180 | N44: 263 | O44: 57 | P44: 144 | Q44: 217 | R44: 4.8 | S44: 26.73 | T44: 4.3 | U44: 19.27
A45: №Т/К 272 | B45: Котлета мясная с соусом | C45: 65/35 | D45: 11.28 | E45: 7.37 | F45: 12.4 | G45: 179.2 | H45: 0 | I45: 0 | J45: 0.1 | K45: 0 | L45: 1.8 | M45: 0 | N45: 0 | O45: 18.9 | P45: 22.1 | Q45: 115.5 | R45: 1.9 | S45: 0 | T45: 0 | U45: 0
A46: 54-1хн-2020 | B46: Компот из смеси сухофруктов | C46: 200 | D46: 0.47 | E46: 0 | F46: 14.78 | G46: 65 | H46: 0 | I46: 0 | J46: 15 | K46: 0 | L46: 0 | M46: 0 | N46: 0 | O46: 108 | P46: 2 | Q46: 4 | R46: 0.1 | S46: 0 | T46: 0 | U46: 0
A47: Пром. | B47: Хлеб пшеничный | C47: 20 | D47: 1.52 | E47: 0.16 | F47: 9.84 | G47: 46.9 | H47: 0.02 | I47: 0.01 | J47: 0 | K47: 0 | L47: 0 | M47: 100 | N47: 19 | O47: 4 | P47: 3 | Q47: 13 | R47: 0.2 | S47: 0.64 | T47: 1.2 | U47: 2.9
A48: Пром. | B48: Хлеб ржаной | C48: 20 | D48: 1.3 | E48: 0.2 | F48: 6.7 | G48: 34.2 | H48: 0.04 | I48: 0.02 | J48: 0 | K48: 0 | L48: 0 | M48: 122 | N48: 49 | O48: 7 | P48: 9.4 | Q48: 31.6 | R48: 0.78 | S48: 0 | T48: 6.18 | U48: 0
B49: Итого за обед | C49: =SUM(C43:C48) -> 480 | D49: 24.94 | E49: 21.44 | F49: 91.14 | G49: 680.1 | H49: 0.35 | I49: 0.2 | J49: 771.02 | K49: 0.11 | L49: 5.43 | M49: 491.79 | N49: 454.26 | O49: 208.4 | P49: 196.07 | Q49: 403.48 | R49: 8.44 | S49: 37.56 | T49: 11.77 | U49: 43.74
B50: Итого за день | C50: =C49+C41 -> 1000 | D50: 31.18 | E50: 27.17 | F50: 139.82 | G50: 952.5 | H50: 0.44 | I50: 0.24 | J50: 771.22 | K50: 0.11 | L50: 18.83 | M50: 792.79 | N50: 546.26 | O50: 277.2 | P50: 240.17 | Q50: 509.18 | R50: 11.42 | S50: 38.2 | T50: 19.15 | U50: 46.64
A52: 3 день, 1 неделя
A53: № рецептуры | B53: Прием пищи, наименование блюда | C53: Масса | D53: Пищевые вещества | G53: Энергетическая ценность | H53: Витамины | M53: Минеральные вещества
D54: Белки | E54: Жиры | F54: Углеводы | H54: B1 | I54: B2 | J54: A | K54: D | L54: C | M54: Na | N54: K | O54: Ca | P54: Mg | Q54: P | R54: Fe | S54: I | T54: Se | U54: F
C55: г | D55: г | E55: г | F55: г | G55: ккал | H55: мг | I55: мг | J55: мкг рет.экв | K55: мкг | L55: мг | M55: мг | N55: мг | O55: мг | P55: мг | Q55: мг | R55: мг | S55: мкг | T55: мкг | U55: мкг
B56: Среда, 1 неделя
B57: Завтрак | C57: 11-18
A58: № Т/К 40 | B58: Салат картофельный с морковью и растительным маслом | C58: 100 | D58: 2.4 | E58: 7.2 | F58: 8.9 | G58: 110.4 | H58: 0.1 | I58: 0 | J58: 0.6 | K58: 0 | L58: 5.6 | M58: 0 | N58: 0 | O58: 25 | P58: 21.9 | Q58: 55.7 | R58: 1 | S58: 0 | T58: 0 | U58: 0
A59: № Т/К 62 | B59: Борщ | C59: 250 | D59: 2.7 | E59: 5.9 | F59: 15.3 | G59: 126.6 | H59: 0.1 | I59: 0 | J59: 0.3 | K59: 0 | L59: 11.4 | M59: 0 | N59: 0 | O59: 49.9 | P59: 32.1 | Q59: 65.6 | R59: 1.7 | S59: 0 | T59: 0 | U59: 0
A60: 54-2гн-2020 | B60: Чай -заварка | C60: 200 | D60: 0.2 | E60: 0 | F60: 6.4 | G60: 26.8 | H60: 0 | I60: 0.01 | J60: 0.3 | K60: 0 | L60: 0.04 | M60: 0.68 | N60: 20.76 | O60: 66.08 | P60: 3.83 | Q60: 7.18 | R60: 0.73 | S60: 0 | T60: 0 | U60: 0
A61: Пром. | B61: Хлеб ржаной | C61: 20 | D61: 1.3 | E61: 0.2 | F61: 6.7 | G61: 34.2 | H61: 0.04 | I61: 0.02 | J61: 0 | K61: 0 | L61: 0 | M61: 122 | N61: 49 | O61: 7 | P61: 9.4 | Q61: 31.6 | R61: 0.78 | S61: 0 | T61: 6.18 | U61: 0
A62: Пром. | B62: Булочка ванильная | C62: 60 | D62: 4.68 | E62: 4.03 | F62: 30.46 | G62: 177 | H62: 0.05 | I62: 0.02 | J62: 19.12 | K62: 0.15 | L62: 0 | M62: 241 | N62: 50 | O62: 18 | P62: 6 | Q62: 41 | R62: 0.5 | S62: 33.36 | T62: 3.1 | U62: 11.03
B63: Итого за завтрак | C63: =SUM(C58:C62) -> 630 | D63: =SUM(D58:D62) -> 11.28 | E63: =SUM(E58:E62) -> 17.33 | F63: 67.76 | G63: 475 | H63: 0.29 | I63: 0.05 | J63: 20.32 | K63: 0.15 | L63: 17.04 | M63: 363.68 | N63: 119.76 | O63: 165.98 | P63: 73.23 | Q63: 201.08 | R63: 4.71 | S63: 33.36 | T63: 9.28 | U63: 11.03
B64: Обед | C64: 11-18
A65: 54-16з-2020 | B65: Винегрет с растительным маслом | C65: 60 | D65: 0.7 | E65: 5.4 | F65: 4 | G65: 67.1 | H65: 0.02 | I65: 0.02 | J65: 72.89 | K65: 0 | L65: 2.26 | M65: 200.99 | N65: 127.85 | O65: 12.1 | P65: 9.66 | Q65: 21.4 | R65: 0.41 | S65: 7.86 | T65: 0.13 | U65: 11.85
A66: 54-1г-2020 | B66: Макароны отварные | C66: 180 | D66: 6.39 | E66: 5.91 | F66: 39.36 | G66: 236.2 | H66: 0.07 | I66: 0.03 | J66: 22.03 | K66: 0.11 | L66: 0 | M66: 179 | N66: 64 | O66: 127 | P66: 9 | Q66: 48 | R66: 0.9 | S66: 24.92 | T66: 0.1 | U66: 14.31
A67: Т/к №290 | B67: Птица тушеная | C67: 80/30 | D67: 8.65 | E67: 7.83 | F67: 3.9 | G67: 145 | H67: 0.1 | I67: 0 | J67: 0 | K67: 0 | L67: 1.5 | M67: 0 | N67: 0 | O67: 26.4 | P67: 16.6 | Q67: 115.3 | R67: 0.9 | S67: 0 | T67: 0 | U67: 0
A68: 54-3гн-2020 | B68: Чай с лимоном и сахаром | C68: 200/7/7 | D68: 0.2 | E68: 0.1 | F68: 6.6 | G68: 27.9 | H68: 0 | I68: 0.01 | J68: 0.38 | K68: 0 | L68: 1.16 | M68: 1.26 | N68: 30.23 | O68: 67 | P68: 4.56 | Q68: 8.52 | R68: 0.77 | S68: 0.01 | T68: 0.02 | U68: 0.7
A69: Пром. | B69: Хлеб ржаной | C69: 20 | D69: 1.3 | E69: 0.2 | F69: 6.7 | G69: 34.2 | H69: 0.04 | I69: 0.02 | J69: 0 | K69: 0 | L69: 0 | M69: 122 | N69: 49 | O69: 7 | P69: 9.4 | Q69: 31.6 | R69: 0.78 | S69: 0 | T69: 6.18 | U69: 0
A70: Пром. | B70: Хлеб пшеничный | C70: 20 | D70: 1.52 | E70: 0.16 | F70: 9.84 | G70: 46.9 | H70: 0.02 | I70: 0.01 | J70: 0 | K70: 0 | L70: 0 | M70: 100 | N70: 19 | O70: 4 | P70: 3 | Q70: 13 | R70: 0.2 | S70: 0.64 | T70: 1.2 | U70: 2.9
A71: Пром. | B71: Фрукт (яблоко, банан, апельсин) | C71: 100 | D71: 0.6 | E71: 0.6 | F71: 14.7 | G71: 66.6 | H71: 0.04 | I71: 0.03 | J71: 7.5 | K71: 0 | L71: 15 | M71: 39 | N71: 417 | O71: 24 | P71: 14 | Q71: 17 | R71: 3.3 | S71: 3 | T71: 0.4 | U71: 12
B72: Итого за обед | C72: 704 | D72: =SUM(D65:D71) -> 19.36 | E72: =SUM(E65:E71) -> 20.2 | F72: 85.1 | G72: 623.9 | H72: 0.29 | I72: 0.12 | J72: 102.8 | K72: 0.11 | L72: 19.92 | M72: 642.25 | N72: 707.08 | O72: 267.5 | P72: 66.22 | Q72: 254.82 | R72: 7.26 | S72: 36.43 | T72: 8.03 | U72: 41.76
B73: Итого за день | C73: =C72+C63 -> 1334 | D73: =D72+D63 -> 30.64 | E73: =E72+E63 -> 37.53 | F73: 152.86 | G73: 1098.9 | H73: 0.58 | I73: 0.17 | J73: 123.12 | K73: 0.26 | L73: 36.96 | M73: 1005.93 | N73: 826.84 | O73: 433.48 | P73: 139.45 | Q73: 455.9 | R73: 11.97 | S73: 69.79 | T73: 17.31 | U73: 52.79
A75: 4 день, 1 неделя
A76: № рецептуры | B76: Прием пищи, наименование блюда | C76: Масса | D76: Пищевые вещества | G76: Энергетическая ценность | H76: Витамины | M76: Минеральные вещества
D77: Белки | E77: Жиры | F77: Углеводы | H77: B1 | I77: B2 | J77: A | K77: D | L77: C | M77: Na | N77: K | O77: Ca | P77: Mg | Q77: P | R77: Fe | S77: I | T77: Se | U77: F
C78: г | D78: г | E78: г | F78: г | G78: ккал | H78: мг | I78: мг | J78: мкг рет.экв | K78: мкг | L78: мг | M78: мг | N78: мг | O78: мг | P78: мг | Q78: мг | R78: мг | S78: мкг | T78: мкг | U78: мкг
B79: Четверг, 1 неделя
B80: Завтрак | C80: 11-18
A81: № Т/К 50 | B81: Салат свеколка с маслом растительным | C81: 100 | D81: 1.8 | E81: 10.1 | F81: 16.2 | G81: 163.2 | H81: 0 | I81: 0 | J81: 0.1 | K81: 0 | L81: 3.5 | M81: 0 | N81: 0 | O81: 45.5 | P81: 27.5 | Q81: 52.8 | R81: 1.5 | S81: 0 | T81: 0 | U81: 0
A82: № Т/к | B82: Суп рисовый | C82: 250 | D82: 2.4 | E82: 2 | F82: 19.7 | G82: 105.4 | H82: 0.1 | I82: 0 | J82: 0.2 | K82: 0 | L82: 5.8 | M82: 0 | N82: 0 | O82: 21.9 | P82: 25.4 | Q82: 58.9 | R82: 0.8 | S82: 0 | T82: 0 | U82: 0
A83: 54-2гн-2020 | B83: Чай с сахаром | C83: 200 | D83: 0.2 | E83: 0 | F83: 6.4 | G83: 26.8 | H83: 0 | I83: 0.01 | J83: 0.3 | K83: 0 | L83: 0.04 | M83: 0.68 | N83: 20.76 | O83: 66.08 | P83: 3.83 | Q83: 7.18 | R83: 0.73 | S83: 0 | T83: 0 | U83: 0
A84: Пром. | B84: Хлеб пшеничный | C84: 20 | D84: 1.52 | E84: 0.16 | F84: 9.84 | G84: 46.9 | H84: 0.02 | I84: 0.01 | J84: 0 | K84: 0 | L84: 0 | M84: 100 | N84: 19 | O84: 4 | P84: 3 | Q84: 13 | R84: 0.2 | S84: 0.64 | T84: 1.2 | U84: 2.9
A85: Пром. | B85: Хлеб ржаной | C85: 20 | D85: 1.3 | E85: 0.2 | F85: 6.7 | G85: 34.2 | H85: 0.04 | I85: 0.02 | J85: 0 | K85: 0 | L85: 0 | M85: 122 | N85: 49 | O85: 7 | P85: 9.4 | Q85: 31.6 | R85: 0.78 | S85: 0 | T85: 6.18 | U85: 0
B86: Итого за завтрак | C86: =SUM(C81:C85) -> 590 | D86: 7.22 | E86: 12.46 | F86: 58.84 | G86: 376.5 | H86: 0.16 | I86: 0.04 | J86: 0.6 | K86: 0 | L86: 9.34 | M86: 222.68 | N86: 88.76 | O86: 144.48 | P86: 69.13 | Q86: 163.48 | R86: 4.01 | S86: 0.64 | T86: 7.38 | U86: 2.9
B87: Обед | C87: 11-18
A88: 54-9з-2020 | B88: Салат из белокочанной капусты с морковью, яблоками и растительным маслом | C88: 60 | D88: 0.8 | E88: 6.1 | F88: 3.6 | G88: 72.5 | H88: 0.02 | I88: 0.02 | J88: 241.63 | K88: 0 | L88: 17.32 | M88: 87.51 | N88: 160.14 | O88: 23.5 | P88: 11.17 | Q88: 18.8 | R88: 0.56 | S88: 9.87 | T88: 0.15 | U88: 10.98
A89: 54-11г-2020 | B89: Картофельное пюре | C89: 180 | D89: 3.69 | E89: 6.37 | F89: 23.79 | G89: 167.3 | H89: 0.14 | I89: 0.12 | J89: 28.55 | K89: 0.11 | L89: 12 | M89: 195 | N89: 750 | O89: 47 | P89: 34 | Q89: 101 | R89: 1.2 | S89: 34.15 | T89: 1 | U89: 51.35
A90: т/к №296 | B90: "Ёжики" мясные 2 шт | C90: 100 | D90: 10.8 | E90: 7.3 | F90: 22.5 | G90: 240.1 | H90: 0 | I90: 0 | J90: 0 | K90: 0 | L90: 1.6 | M90: 0 | N90: 0 | O90: 26.8 | P90: 23.9 | Q90: 129.9 | R90: 1.8 | S90: 0 | T90: 0 | U90: 0
A91: Т/к №430 | B91: Чай с сахаром и яблоком | C91: 200/7/10 | D91: 0.2 | E91: 0 | F91: 8.2 | G91: 34.1 | H91: 0 | I91: 0 | J91: 0 | K91: 0 | L91: 0.4 | M91: 0 | N91: 0 | O91: 14.1 | P91: 6.5 | Q91: 8.4 | R91: 0.9 | S91: 0 | T91: 0 | U91: 0
A92: Пром. | B92: Хлеб ржаной | C92: 20 | D92: 1.3 | E92: 0.2 | F92: 6.7 | G92: 34.2 | H92: 0.04 | I92: 0.02 | J92: 0 | K92: 0 | L92: 0 | M92: 122 | N92: 49 | O92: 7 | P92: 9.4 | Q92: 31.6 | R92: 0.78 | S92: 0 | T92: 6.18 | U92: 0
A93: Пром. | B93: Хлеб пшеничный | C93: 20 | D93: 1.52 | E93: 0.16 | F93: 9.84 | G93: 46.9 | H93: 0.02 | I93: 0.01 | J93: 0 | K93: 0 | L93: 0 | M93: 100 | N93: 19 | O93: 4 | P93: 3 | Q93: 13 | R93: 0.2 | S93: 0.64 | T93: 1.2 | U93: 2.9
B94: Итого за обед | C94: 597 | D94: =SUM(D88:D93) -> 18.31 | E94: =SUM(E88:E93) -> 20.13 | F94: 74.63 | G94: 595.1 | H94: 0.22 | I94: 0.17 | J94: 270.18 | K94: 0.11 | L94: 31.32 | M94: 504.51 | N94: 978.14 | O94: 122.4 | P94: 87.97 | Q94: 302.7 | R94: 5.44 | S94: 44.66 | T94: 8.53 | U94: 65.23
B95: Итого за день | C95: =C94+C86 -> 1187 | D95: 25.53 | E95: 32.59 | F95: 133.47 | G95: 971.6 | H95: 0.38 | I95: 0.21 | J95: 270.78 | K95: 0.11 | L95: 40.66 | M95: 727.19 | N95: 1066.9 | O95: 266.88 | P95: 157.1 | Q95: 466.18 | R95: 9.45 | S95: 45.3 | T95: 15.91 | U95: 68.13
A97: 5 день, 1 неделя
A98: № рецептуры | B98: Прием пищи, наименование блюда | C98: Масса | D98: Пищевые вещества | G98: Энергетическая ценность | H98: Витамины | M98: Минеральные вещества
D99: Белки | E99: Жиры | F99: Углеводы | H99: B1 | I99: B2 | J99: A | K99: D | L99: C | M99: Na | N99: K | O99: Ca | P99: Mg | Q99: P | R99: Fe | S99: I | T99: Se | U99: F
C100: г | D100: г | E100: г | F100: г | G100: ккал | H100: мг | I100: мг | J100: мкг рет.экв | K100: мкг | L100: мг | M100: мг | N100: мг | O100: мг | P100: мг | Q100: мг | R100: мг | S100: мкг | T100: мкг | U100: мкг
B101: Пятница, 1 неделя
B102: Завтрак | C102: 11-18
A103: 54-6о | B103: Яйцо вареное (1 шт) | C103: 40 | D103: 3.28 | E103: 2.05 | F103: 0.25 | G103: 56.6 | H103: 0.02 | I103: 0.14 | J103: 62.4 | K103: 0.88 | L103: 0 | M103: 41 | N103: 46 | O103: 19 | P103: 4 | Q103: 67 | R103: 0.9 | S103: 8 | T103: 10.8 | U103: 22
A104: № Т/к №110 | B104: Бульон с лапшой домашней | C104: 250 | D104: 7.4 | E104: 2.3 | F104: 37.2 | G104: 200.5 | H104: 0.1 | I104: 0 | J104: 0.1 | K104: 0 | L104: 0.2 | M104: 0 | N104: 0 | O104: 33.6 | P104: 13.2 | Q104: 72.6 | R104: 0.9 | S104: 0 | T104: 0 | U104: 0
A105: 54-21гн-2020 | B105: Какао с молоком | C105: 200 | D105: 4.7 | E105: 3.5 | F105: 12.5 | G105: 100.4 | H105: 0.04 | I105: 0.16 | J105: 17.25 | K105: 0 | L105: 0.68 | M105: 49.95 | N105: 220.33 | O105: 167.68 | P105: 34.32 | Q105: 130.28 | R105: 1.09 | S105: 11.7 | T105: 2.29 | U105: 38.25
A106: Пром. | B106: Хлеб пшеничный | C106: 20 | D106: 1.52 | E106: 0.16 | F106: 9.84 | G106: 46.9 | H106: 0.02 | I106: 0.01 | J106: 0 | K106: 0 | L106: 0 | M106: 100 | N106: 19 | O106: 4 | P106: 3 | Q106: 13 | R106: 0.2 | S106: 0.64 | T106: 1.2 | U106: 2.9
A107: Пром. | B107: Хлеб ржаной | C107: 20 | D107: 1.3 | E107: 0.2 | F107: 6.7 | G107: 34.2 | H107: 0.04 | I107: 0.02 | J107: 0 | K107: 0 | L107: 0 | M107: 122 | N107: 49 | O107: 7 | P107: 9.4 | Q107: 31.6 | R107: 0.78 | S107: 0 | T107: 6.18 | U107: 0
B108: Итого за завтрак | C108: =SUM(C103:C107) -> 530 | D108: =SUM(D103:D107) -> 18.2 | E108: =SUM(E103:E107) -> 8.21 | F108: 66.49 | G108: 438.6 | H108: 0.22 | I108: 0.33 | J108: 79.75 | K108: 0.88 | L108: 0.88 | M108: 312.95 | N108: 334.33 | O108: 231.28 | P108: 63.92 | Q108: 314.48 | R108: 3.87 | S108: 20.34 | T108: 20.47 | U108: 63.15
B109: Обед | C109: 11-18
A110: 54-11з-2020 | B110: Салат из моркови с яблоками с растительным маслом | C110: 60 | D110: 0.5 | E110: 6.1 | F110: 4.3 | G110: 74.3 | H110: 0.03 | I110: 0.03 | J110: 732.9 | K110: 0 | L110: 3.63 | M110: 89.79 | N110: 123.26 | O110: 13.5 | P110: 15.57 | Q110: 22.38 | R110: 0.66 | S110: 10.19 | T110: 0.09 | U110: 21.57
A111: 54-12м-2020 | B111: Плов с курицей | C111: 170/50 | D111: 20.34 | E111: 8.18 | F111: 36.38 | G111: 300.4 | H111: 0.08 | I111: 0.07 | J111: 159.36 | K111: 0 | L111: 2 | M111: 301 | N111: 316 | O111: 80 | P111: 87 | Q111: 193 | R111: 1.7 | S111: 41.15 | T111: 21.6 | U111: 129.9
A112: 54-1хн-2020 | B112: Компот из смеси сухофруктов | C112: 200 | D112: 0.47 | E112: 0 | F112: 14.78 | G112: 65 | H112: 0 | I112: 0 | J112: 15 | K112: 0 | L112: 0 | M112: 0 | N112: 0 | O112: 108 | P112: 2 | Q112: 4 | R112: 0.1 | S112: 0 | T112: 0 | U112: 0
A113: Пром. | B113: Хлеб ржаной | C113: 20 | D113: 1.3 | E113: 0.2 | F113: 6.7 | G113: 34.2 | H113: 0.04 | I113: 0.02 | J113: 0 | K113: 0 | L113: 0 | M113: 122 | N113: 49 | O113: 7 | P113: 9.4 | Q113: 31.6 | R113: 0.78 | S113: 0 | T113: 6.18 | U113: 0
A114: Пром. | B114: Булочка ванильная | C114: 60 | D114: 4.68 | E114: 4.03 | F114: 30.46 | G114: 177 | H114: 0.05 | I114: 0.02 | J114: 19.12 | K114: 0.15 | L114: 0 | M114: 241 | N114: 50 | O114: 18 | P114: 6 | Q114: 41 | R114: 0.5 | S114: 33.36 | T114: 3.1 | U114: 11.03
B115: Итого за обед | C115: 560 | D115: =SUM(D110:D114) -> 27.29 | E115: =SUM(E110:E114) -> 18.51 | F115: 92.62 | G115: 650.9 | H115: 0.2 | I115: 0.14 | J115: 926.38 | K115: 0.15 | L115: 5.63 | M115: 753.79 | N115: 538.26 | O115: 226.5 | P115: 119.97 | Q115: 291.98 | R115: 3.74 | S115: 84.7 | T115: 30.97 | U115: 162.5
B116: Итого за день | C116: =C115+C108 -> 1090 | D116: =D115+D108 -> 45.49 | E116: 26.72 | F116: 159.11 | G116: 1089.5 | H116: 0.42 | I116: 0.47 | J116: 1006.13 | K116: 1.03 | L116: 6.51 | M116: 1066.74 | N116: 872.59 | O116: 457.78 | P116: 183.89 | Q116: 606.46 | R116: 7.61 | S116: 105.04 | T116: 51.44 | U116: 225.65
A119: 6 день, 1 неделя
A120: № рецептуры | B120: Прием пищи, наименование блюда | C120: Масса | D120: Пищевые вещества | G120: Энергетическая ценность | H120: Витамины | M120: Минеральные вещества
D121: Белки | E121: Жиры | F121: Углеводы | H121: B1 | I121: B2 | J121: A | K121: D | L121: C | M121: Na | N121: K | O121: Ca | P121: Mg | Q121: P | R121: Fe | S121: I | T121: Se | U121: F
C122: г | D122: г | E122: г | F122: г | G122: ккал | H122: мг | I122: мг | J122: мкг рет.экв | K122: мкг | L122: мг | M122: мг | N122: мг | O122: мг | P122: мг | Q122: мг | R122: мг | S122: мкг | T122: мкг | U122: мкг
B123: Пятница, 1 неделя
B124: Горячий завтрак | C124: 11-18
A125: 54-16з-2020 | B125: Винегрет с растительным маслом | C125: 60 | D125: 0.7 | E125: 5.4 | F125: 4 | G125: 67.1 | H125: 0.02 | I125: 0.02 | J125: 72.89 | K125: 0 | L125: 2.26 | M125: 200.99 | N125: 127.85 | O125: 12.1 | P125: 9.66 | Q125: 21.4 | R125: 0.41 | S125: 7.86 | T125: 0.13 | U125: 11.85
A126: 54-3г | B126: Макароны отварные с сыром | C126: 200 | D126: 10.55 | E126: 9.1 | F126: 38.21 | G126: 277 | H126: 0.08 | I126: 0.07 | J126: 44.88 | K126: 0.26 | L126: 0 | M126: 321 | N126: 77 | O126: 208 | P126: 14 | Q126: 133 | R126: 1 | S126: 27.56 | T126: 2.6 | U126: 13.82
A127: 54-21гн-2020 | B127: Кофейный напиток с молоком | C127: 200 | D127: 3.9 | E127: 2.9 | F127: 11.2 | G127: 86 | H127: 0.03 | I127: 0.13 | J127: 13.29 | K127: 0 | L127: 0.52 | M127: 38.55 | N127: 183.98 | O127: 148.32 | P127: 30.67 | Q127: 106.79 | R127: 1.06 | S127: 9 | T127: 1.76 | U127: 20
A128: Пром. | B128: Хлеб ржаной | C128: 20 | D128: 1.3 | E128: 0.2 | F128: 6.7 | G128: 34.2 | H128: 0.04 | I128: 0.02 | J128: 0 | K128: 0 | L128: 0 | M128: 122 | N128: 49 | O128: 7 | P128: 9.4 | Q128: 31.6 | R128: 0.78 | S128: 0 | T128: 6.18 | U128: 0
A129: Пром. | B129: Хлеб пшеничный | C129: 20 | D129: 1.52 | E129: 0.16 | F129: 9.84 | G129: 46.9 | H129: 0.02 | I129: 0.01 | J129: 0 | K129: 0 | L129: 0 | M129: 100 | N129: 19 | O129: 4 | P129: 3 | Q129: 13 | R129: 0.2 | S129: 0.64 | T129: 1.2 | U129: 2.9
A130: Пром. | B130: Сушка простая | C130: 10 | D130: 1.09 | E130: 0.13 | F130: 6.88 | G130: 33.1 | H130: 0.02 | I130: 0.01 | J130: 0 | K130: 0 | L130: 0 | M130: 46 | N130: 15 | O130: 3 | P130: 4 | Q130: 11 | R130: 0.3 | S130: 0 | T130: 0 | U130: 0
B131: Итого за Завтрак | C131: =SUM(C125:C130) -> 510 | D131: =SUM(D125:D130) -> 19.06 | E131: 17.89 | F131: 76.83 | G131: 544.3 | H131: 0.21 | I131: 0.26 | J131: 131.06 | K131: 0.26 | L131: 2.78 | M131: 828.54 | N131: 471.83 | O131: 382.42 | P131: 70.73 | Q131: 316.79 | R131: 3.75 | S131: 45.06 | T131: 11.87 | U131: 48.57
B132: Итого за день | C132: =C131 -> 510 | D132: =D131 -> 19.06 | E132: =E131 -> 17.89 | F132: 76.83 | G132: 544.3 | H132: 0.21 | I132: 0.26 | J132: 131.06 | K132: 0.26 | L132: 2.78 | M132: 828.54 | N132: 471.83 | O132: 382.42 | P132: 70.73 | Q132: 316.79 | R132: 3.75 | S132: 45.06 | T132: 11.87 | U132: 48.57
A135: 7 день, 2 неделя
A136: № рецептуры | B136: Прием пищи, наименование блюда | C136: Масса | D136: Пищевые вещества | G136: Энергетическая ценность | H136: Витамины | M136: Минеральные вещества
D137: Белки | E137: Жиры | F137: Углеводы | H137: B1 | I137: B2 | J137: A | K137: D | L137: C | M137: Na | N137: K | O137: Ca | P137: Mg | Q137: P | R137: Fe | S137: I | T137: Se | U137: F
C138: г | D138: г | E138: г | F138: г | G138: ккал | H138: мг | I138: мг | J138: мкг рет.экв | K138: мкг | L138: мг | M138: мг | N138: мг | O138: мг | P138: мг | Q138: мг | R138: мг | S138: мкг | T138: мкг | U138: мкг
B139: Понедельник, 2 неделя
B140: Завтрак | C140: 11-18
A141: № Т/К 40 | B141: Салат картофельный с морковью и растительным маслом | C141: 100 | D141: 2.4 | E141: 7.2 | F141: 8.9 | G141: 110.4 | H141: 0.1 | I141: 0 | J141: 0.6 | K141: 0 | L141: 5.6 | M141: 0 | N141: 0 | O141: 25 | P141: 21.9 | Q141: 55.7 | R141: 1 | S141: 0 | T141: 0 | U141: 0
A142: № т/к 207 | B142: Макаронник | C142: 220/7 | D142: 10.9 | E142: 12.2 | F142: 36.2 | G142: 290.6 | H142: 0.2 | I142: 0 | J142: 0.1 | K142: 0 | L142: 0 | M142: 0 | N142: 0 | O142: 30.8 | P142: 16 | Q142: 88.5 | R142: 1.8 | S142: 0 | T142: 0 | U142: 0
A143: 54-2гн-2020 | B143: Чай -заварка | C143: 200 | D143: 0.2 | E143: 0 | F143: 6.4 | G143: 26.8 | H143: 0 | I143: 0.01 | J143: 0.3 | K143: 0 | L143: 0.04 | M143: 0.68 | N143: 20.76 | O143: 66.08 | P143: 3.83 | Q143: 7.18 | R143: 0.73 | S143: 0 | T143: 0 | U143: 0
A144: Пром. | B144: Хлеб пшеничный | C144: 20 | D144: 1.52 | E144: 0.16 | F144: 9.84 | G144: 46.9 | H144: 0.02 | I144: 0.01 | J144: 0 | K144: 0 | L144: 0 | M144: 100 | N144: 19 | O144: 4 | P144: 3 | Q144: 13 | R144: 0.2 | S144: 0.64 | T144: 1.2 | U144: 2.9
A145: Пром. | B145: Хлеб ржаной | C145: 20 | D145: 1.3 | E145: 0.2 | F145: 6.7 | G145: 34.2 | H145: 0.04 | I145: 0.02 | J145: 0 | K145: 0 | L145: 0 | M145: 122 | N145: 49 | O145: 7 | P145: 9.4 | Q145: 31.6 | R145: 0.78 | S145: 0 | T145: 6.18 | U145: 0
B146: Итого за завтрак | C146: 567 | D146: =SUM(D141:D145) -> 16.32 | E146: =SUM(E141:E145) -> 19.76 | F146: 68.04 | G146: 508.9 | H146: 0.36 | I146: 0.04 | J146: 1 | K146: 0 | L146: 5.64 | M146: 222.68 | N146: 88.76 | O146: 132.88 | P146: 54.13 | Q146: 195.98 | R146: 4.51 | S146: 0.64 | T146: 7.38 | U146: 2.9
B147: Обед | C147: 11-18
A148: №Т/К 41 | B148: Салат из моркови с сахаром и растительным маслом | C148: 60 | D148: 0.5 | E148: 6.1 | F148: 4.3 | G148: 74.3 | H148: 0.03 | I148: 0.03 | J148: 732.9 | K148: 0 | L148: 3.63 | M148: 89.79 | N148: 123.26 | O148: 13.5 | P148: 15.57 | Q148: 22.38 | R148: 0.66 | S148: 10.19 | T148: 0.09 | U148: 21.57
A149: 62 | B149: Борщ | C149: 250 | D149: 13.1 | E149: 7.3 | F149: 20.1 | G149: 180 | H149: 0.1 | I149: 0 | J149: 0.3 | K149: 0 | L149: 12 | M149: 0 | N149: 0 | O149: 55 | P149: 33.4 | Q149: 72.4 | R149: 1.6 | S149: 0 | T149: 0 | U149: 0
A150: Т/к №430 | B150: Чай с сахаром и яблоком | C150: 200/7/10 | D150: 0.2 | E150: 0 | F150: 8.2 | G150: 34.1 | H150: 0 | I150: 0 | J150: 0 | K150: 0 | L150: 0.4 | M150: 0 | N150: 0 | O150: 14.1 | P150: 6.5 | Q150: 8.4 | R150: 0.9 | S150: 0 | T150: 0 | U150: 0
A151: Пром. | B151: Булочка ванильная | C151: 60 | D151: 4.68 | E151: 4.03 | F151: 30.46 | G151: 177 | H151: 0.05 | I151: 0.02 | J151: 19.12 | K151: 0.15 | L151: 0 | M151: 241 | N151: 50 | O151: 18 | P151: 6 | Q151: 41 | R151: 0.5 | S151: 33.36 | T151: 3.1 | U151: 11.03
A152: Пром. | B152: Хлеб ржаной | C152: 20 | D152: 1.3 | E152: 0.2 | F152: 6.7 | G152: 34.2 | H152: 0.04 | I152: 0.02 | J152: 0 | K152: 0 | L152: 0 | M152: 122 | N152: 49 | O152: 7 | P152: 9.4 | Q152: 31.6 | R152: 0.78 | S152: 0 | T152: 6.18 | U152: 0
B153: Итого за обед | C153: 607 | D153: =SUM(D148:D152) -> 19.78 | E153: 17.63 | F153: 69.76 | G153: 499.6 | H153: 0.22 | I153: 0.07 | J153: 752.32 | K153: 0.15 | L153: 16.03 | M153: 452.79 | N153: 222.26 | O153: 107.6 | P153: 70.87 | Q153: 175.78 | R153: 4.44 | S153: 43.55 | T153: 9.37 | U153: 32.6
B154: Итого за день | C154: =C153+C146 -> 1174 | D154: =D153+D146 -> 36.1 | E154: 37.39 | F154: 137.8 | G154: 1008.5 | H154: 0.58 | I154: 0.11 | J154: 753.32 | K154: 0.15 | L154: 21.67 | M154: 675.47 | N154: 311.02 | O154: 240.48 | P154: 125 | Q154: 371.76 | R154: 8.95 | S154: 44.19 | T154: 16.75 | U154: 35.5
A156: 8 день, 2 неделя
A157: № рецептуры | B157: Прием пищи, наименование блюда | C157: Масса | D157: Пищевые вещества | G157: Энергетическая ценность | H157: Витамины | M157: Минеральные вещества
D158: Белки | E158: Жиры | F158: Углеводы | H158: B1 | I158: B2 | J158: A | K158: D | L158: C | M158: Na | N158: K | O158: Ca | P158: Mg | Q158: P | R158: Fe | S158: I | T158: Se | U158: F
C159: г | D159: г | E159: г | F159: г | G159: ккал | H159: мг | I159: мг | J159: мкг рет.экв | K159: мкг | L159: мг | M159: мг | N159: мг | O159: мг | P159: мг | Q159: мг | R159: мг | S159: мкг | T159: мкг | U159: мкг
B160: Вторник, 2 неделя
B161: Завтрак | C161: 11-18
A162: № т/к 15 | B162: Салат из отварной моркови (порциями) | C162: 100 | D162: 1.3 | E162: 0.1 | F162: 6.9 | G162: 35 | H162: 0.1 | I162: 0 | J162: 2.5 | K162: 0 | L162: 5 | M162: 0 | N162: 0 | O162: 51 | P162: 38 | Q162: 55 | R162: 1 | S162: 0 | T162: 0 | U162: 0
A163: № Т/к №110 | B163: Бульон с лапшой домашней | C163: 250 | D163: 7.4 | E163: 2.3 | F163: 37.2 | G163: 200.5 | H163: 0.1 | I163: 0 | J163: 0.1 | K163: 0 | L163: 0.2 | M163: 0 | N163: 0 | O163: 33.6 | P163: 13.2 | Q163: 72.6 | R163: 0.9 | S163: 0 | T163: 0 | U163: 0
A164: № Т/к 438 | B164: Напиток яблочный | C164: 200 | D164: 0.1 | E164: 0.1 | F164: 13.9 | G164: 57.8 | H164: 0 | I164: 0 | J164: 0 | K164: 0 | L164: 1 | M164: 0 | N164: 0 | O164: 12.3 | P164: 3.7 | Q164: 2.4 | R164: 0.5 | S164: 0 | T164: 0 | U164: 0
A165: Пром. | B165: Хлеб пшеничный | C165: 20 | D165: 1.52 | E165: 0.16 | F165: 9.84 | G165: 46.9 | H165: 0.02 | I165: 0.01 | J165: 0 | K165: 0 | L165: 0 | M165: 100 | N165: 19 | O165: 4 | P165: 3 | Q165: 13 | R165: 0.2 | S165: 0.64 | T165: 1.2 | U165: 2.9
A166: Пром. | B166: Хлеб ржаной | C166: 20 | D166: 1.3 | E166: 0.2 | F166: 6.7 | G166: 34.2 | H166: 0.04 | I166: 0.02 | J166: 0 | K166: 0 | L166: 0 | M166: 122 | N166: 49 | O166: 7 | P166: 9.4 | Q166: 31.6 | R166: 0.78 | S166: 0 | T166: 6.18 | U166: 0
B167: Итого за завтрак | C167: =SUM(C162:C166) -> 590 | D167: =SUM(D162:D166) -> 11.62 | E167: =SUM(E162:E166) -> 2.86 | F167: 74.54 | G167: 374.4 | H167: 0.26 | I167: 0.03 | J167: 2.6 | K167: 0 | L167: 6.2 | M167: 222 | N167: 68 | O167: 107.9 | P167: 67.3 | Q167: 174.6 | R167: 3.38 | S167: 0.64 | T167: 7.38 | U167: 2.9
B168: Обед | C168: 11-18
A169: 54-9з-2020 | B169: Салат из белокочанной капусты с морковью, яблоками и растительным маслом | C169: 60 | D169: 0.8 | E169: 6.1 | F169: 3.6 | G169: 72.5 | H169: 0.02 | I169: 0.02 | J169: 241.63 | K169: 0 | L169: 17.32 | M169: 87.51 | N169: 160.14 | O169: 23.5 | P169: 11.17 | Q169: 18.8 | R169: 0.56 | S169: 9.87 | T169: 0.15 | U169: 10.98
A170: 54-12м-2020 | B170: Плов с курицей | C170: 170/50 | D170: 20.34 | E170: 8.18 | F170: 36.38 | G170: 300.4 | H170: 0.08 | I170: 0.07 | J170: 159.36 | K170: 0 | L170: 2 | M170: 301 | N170: 316 | O170: 80 | P170: 87 | Q170: 193 | R170: 1.7 | S170: 41.15 | T170: 21.6 | U170: 129.9
A171: 54-3гн-2020 | B171: Чай с лимоном и сахаром | C171: 200/7/7 | D171: 0.2 | E171: 0.1 | F171: 6.6 | G171: 27.9 | H171: 0 | I171: 0.01 | J171: 0.38 | K171: 0 | L171: 1.16 | M171: 1.26 | N171: 30.23 | O171: 67 | P171: 4.56 | Q171: 8.52 | R171: 0.77 | S171: 0.01 | T171: 0.02 | U171: 0.7
A172: Пром. | B172: Хлеб пшеничный | C172: 20 | D172: 1.52 | E172: 0.16 | F172: 9.84 | G172: 46.9 | H172: 0.02 | I172: 0.01 | J172: 0 | K172: 0 | L172: 0 | M172: 100 | N172: 19 | O172: 4 | P172: 3 | Q172: 13 | R172: 0.2 | S172: 0.64 | T172: 1.2 | U172: 2.9
A173: Пром. | B173: Хлеб ржаной | C173: 20 | D173: 1.3 | E173: 0.2 | F173: 6.7 | G173: 34.2 | H173: 0.04 | I173: 0.02 | J173: 0 | K173: 0 | L173: 0 | M173: 122 | N173: 49 | O173: 7 | P173: 9.4 | Q173: 31.6 | R173: 0.78 | S173: 0 | T173: 6.18 | U173: 0
A174: Пром. | B174: Кондитерское изделие(печенье, сушка, пряник) | C174: 36 | D174: 2.7 | E174: 3.53 | F174: 26.78 | G174: 149.7 | H174: 0.021 | I174: 0.014 | J174: 2.376 | K174: 0 | L174: 0 | M174: 90.288 | N174: 32.87 | O174: 9.187 | P174: 6.264 | Q174: 28.188 | R174: 0.658 | S174: 0 | T174: 0 | U174: 0
B175: Итого за обед | C175: 570 | D175: =SUM(D169:D174) -> 26.86 | E175: =SUM(E169:E174) -> 18.27 | F175: 89.9 | G175: 631.6 | H175: 0.181 | I175: 0.144 | J175: 403.746 | K175: 0 | L175: 20.48 | M175: 702.058 | N175: 607.24 | O175: 190.687 | P175: 121.394 | Q175: 293.108 | R175: 4.668 | S175: 51.67 | T175: 29.15 | U175: 144.48
B176: Итого за день | C176: =C175+C167 -> 1160 | D176: 38.48 | E176: 21.13 | F176: 164.44 | G176: 1006 | H176: 0.441 | I176: 0.174 | J176: 406.346 | K176: 0 | L176: 26.68 | M176: 924.058 | N176: 675.24 | O176: 298.587 | P176: 188.694 | Q176: 467.708 | R176: 8.048 | S176: 52.31 | T176: 36.53 | U176: 147.38
A178: 9 день, 2 неделя
A179: № рецептуры | B179: Прием пищи, наименование блюда | C179: Масса | D179: Пищевые вещества | G179: Энергетическая ценность | H179: Витамины | M179: Минеральные вещества
D180: Белки | E180: Жиры | F180: Углеводы | H180: B1 | I180: B2 | J180: A | K180: D | L180: C | M180: Na | N180: K | O180: Ca | P180: Mg | Q180: P | R180: Fe | S180: I | T180: Se | U180: F
C181: г | D181: г | E181: г | F181: г | G181: ккал | H181: мг | I181: мг | J181: мкг рет.экв | K181: мкг | L181: мг | M181: мг | N181: мг | O181: мг | P181: мг | Q181: мг | R181: мг | S181: мкг | T181: мкг | U181: мкг
B182: Среда, 2 неделя
B183: Завтрак | C183: 11-18
A184: Пром. | B184: Кондитерское изделие (простая сушка, пряник, печенье, вафли) | C184: 15 | D184: 1.42 | E184: 0.17 | F184: 8.94 | G184: 43 | H184: 0.03 | I184: 0.01 | J184: 0 | K184: 0 | L184: 0 | M184: 79 | N184: 24 | O184: 4 | P184: 6 | Q184: 16 | R184: 0.4 | S184: 0 | T184: 0 | U184: 0
A185: № Т/к 67 | B185: Щи из свежей капусты с картофелем | C185: 250 | D185: 1.9 | E185: 5.1 | F185: 9.3 | G185: 90.5 | H185: 0 | I185: 0 | J185: 0.2 | K185: 0 | L185: 12.4 | M185: 0 | N185: 0 | O185: 41.5 | P185: 22 | Q185: 42.7 | R185: 1.1 | S185: 0 | T185: 0 | U185: 0
A186: 54-2гн-2020 | B186: Чай с сахаром | C186: 200 | D186: 0.19 | E186: 0.04 | F186: 6.42 | G186: 26.8 | H186: 0 | I186: 0.01 | J186: 0.3 | K186: 0 | L186: 0 | M186: 1 | N186: 21 | O186: 66 | P186: 4 | Q186: 7 | R186: 0.7 | S186: 0 | T186: 0 | U186: 0
A187: Пром. | B187: Хлеб пшеничный | C187: 20 | D187: 1.52 | E187: 0.16 | F187: 9.84 | G187: 46.9 | H187: 0.02 | I187: 0.01 | J187: 0 | K187: 0 | L187: 0 | M187: 100 | N187: 19 | O187: 4 | P187: 3 | Q187: 13 | R187: 0.2 | S187: 0.64 | T187: 1.2 | U187: 2.9
A188: Пром. | B188: Хлеб ржаной | C188: 20 | D188: 1.3 | E188: 0.2 | F188: 6.7 | G188: 34.2 | H188: 0.04 | I188: 0.02 | J188: 0 | K188: 0 | L188: 0 | M188: 122 | N188: 49 | O188: 7 | P188: 9.4 | Q188: 31.6 | R188: 0.78 | S188: 0 | T188: 6.18 | U188: 0
B189: Итого за завтрак | C189: =SUM(C184:C188) -> 505 | D189: =SUM(D184:D188) -> 6.33 | E189: =SUM(E184:E188) -> 5.67 | F189: 41.2 | G189: 241.4 | H189: 0.09 | I189: 0.05 | J189: 0.5 | K189: 0 | L189: 12.4 | M189: 302 | N189: 113 | O189: 122.5 | P189: 44.4 | Q189: 110.3 | R189: 3.18 | S189: 0.64 | T189: 7.38 | U189: 2.9
B190: Обед | C190: 11-18
A191: 54-13з-2020 | B191: Салат из свеклы отварной с растительным маслом | C191: 60 | D191: 0.8 | E191: 2.7 | F191: 4.6 | G191: 45.6 | H191: 0.01 | I191: 0.02 | J191: 0.68 | K191: 0 | L191: 2.28 | M191: 78.77 | N191: 136.27 | O191: 19.21 | P191: 10.95 | Q191: 21.51 | R191: 0.7 | S191: 11.99 | T191: 0.35 | U191: 11.4
A192: 54-22м-2020 | B192: Рагу из курицы | C192: 160/60 | D192: 3.69 | E192: 6.37 | F192: 23.79 | G192: 239 | H192: 0.14 | I192: 0.12 | J192: 28.55 | K192: 0.11 | L192: 12 | M192: 195 | N192: 750 | O192: 47 | P192: 34 | Q192: 101 | R192: 1.2 | S192: 34.15 | T192: 1 | U192: 51.35
A193: 54-21гн-2020 | B193: Кофейный напиток с молоком | C193: 200 | D193: 8.31 | E193: 8.37 | F193: 15.42 | G193: 86 | H193: 0 | I193: 0 | J193: 38.45 | K193: 0.01 | L193: 1.79 | M193: 3 | N193: 43 | O193: 45.75 | P193: 35.13 | Q193: 109 | R193: 1.6 | S193: 0 | T193: 0 | U193: 0
A194: Пром. | B194: Хлеб ржаной | C194: 20 | D194: 3.9 | E194: 2.9 | F194: 11.2 | G194: 34.2 | H194: 0.03 | I194: 0.13 | J194: 13.29 | K194: 0 | L194: 0.52 | M194: 38.55 | N194: 183.98 | O194: 148.32 | P194: 30.67 | Q194: 106.79 | R194: 1.06 | S194: 9 | T194: 1.76 | U194: 20
A195: Пром. | B195: Хлеб пшеничный | C195: 20 | D195: 1.3 | E195: 0.2 | F195: 6.7 | G195: 46.9 | H195: 0.04 | I195: 0.02 | J195: 0 | K195: 0 | L195: 0 | M195: 122 | N195: 49 | O195: 7 | P195: 9.4 | Q195: 31.6 | R195: 0.78 | S195: 0 | T195: 6.18 | U195: 0
A196: Пром. | B196: Фрукт (яблоко, банан, апельсин) | C196: 180 | D196: 1.52 | E196: 0.16 | F196: 9.84 | G196: 66.6 | H196: 0.02 | I196: 0.01 | J196: 0 | K196: 0 | L196: 0 | M196: 100 | N196: 19 | O196: 4 | P196: 3 | Q196: 13 | R196: 0.2 | S196: 0.64 | T196: 1.2 | U196: 2.9
B197: Итого за обед | C197: 700 | D197: =SUM(D191:D196) -> 19.52 | E197: =SUM(E191:E196) -> 20.7 | F197: 71.55 | G197: =SUM(G191:G196) -> 518.3 | H197: 0.24 | I197: 0.3 | J197: 80.97 | K197: 0.12 | L197: 16.59 | M197: 537.32 | N197: 1181.25 | O197: 271.28 | P197: 123.15 | Q197: 382.9 | R197: 5.54 | S197: 55.78 | T197: 10.49 | U197: 85.65
B198: Итого за день | C198: =C197+C189 -> 1205 | D198: 25.85 | E198: 26.37 | F198: 112.75 | G198: 759.7 | H198: 0.33 | I198: 0.35 | J198: 81.47 | K198: 0.12 | L198: 28.99 | M198: 839.32 | N198: 1294.25 | O198: 393.78 | P198: 167.55 | Q198: 493.2 | R198: 8.72 | S198: 56.42 | T198: 17.87 | U198: 88.55
A200: 10 день, 2 неделя
A201: № рецептуры | B201: Прием пищи, наименование блюда | C201: Масса | D201: Пищевые вещества | G201: Энергетическая ценность | H201: Витамины | M201: Минеральные вещества
D202: Белки | E202: Жиры | F202: Углеводы | H202: B1 | I202: B2 | J202: A | K202: D | L202: C | M202: Na | N202: K | O202: Ca | P202: Mg | Q202: P | R202: Fe | S202: I | T202: Se | U202: F
C203: г | D203: г | E203: г | F203: г | G203: ккал | H203: мг | I203: мг | J203: мкг рет.экв | K203: мкг | L203: мг | M203: мг | N203: мг | O203: мг | P203: мг | Q203: мг | R203: мг | S203: мкг | T203: мкг | U203: мкг
B204: Четверг, 2 неделя
B205: Завтрак | C205: 11-18
A206: № Т/К 50 | B206: Салат свеколка с маслом растительным | C206: 100 | D206: 1.8 | E206: 10.1 | F206: 16.2 | G206: 163.2 | H206: 0 | I206: 0 | J206: 0.1 | K206: 0 | L206: 3.5 | M206: 0 | N206: 0 | O206: 45.5 | P206: 27.5 | Q206: 52.8 | R206: 1.5 | S206: 0 | T206: 0 | U206: 0
A207: № Т/к100 | B207: Суп картофельный с вермишелью | C207: 250 | D207: 2.8 | E207: 2.8 | F207: 20.2 | G207: 118 | H207: 0.1 | I207: 0 | J207: 0.2 | K207: 0 | L207: 6.6 | M207: 0 | N207: 0 | O207: 23.9 | P207: 23.4 | Q207: 57.7 | R207: 1.1 | S207: 0 | T207: 0 | U207: 0
A208: 54-3гн-2020 | B208: Чай с лимоном и сахаром | C208: 207 | D208: 0.2 | E208: 0.1 | F208: 6.6 | G208: 27.9 | H208: 0 | I208: 0.01 | J208: 0.38 | K208: 0 | L208: 1.16 | M208: 1.26 | N208: 30.23 | O208: 67 | P208: 4.56 | Q208: 8.52 | R208: 0.77 | S208: 0.01 | T208: 0.02 | U208: 0.7
A209: Пром. | B209: Хлеб ржаной | C209: 20 | D209: 1.3 | E209: 0.2 | F209: 6.7 | G209: 34.2 | H209: 0.04 | I209: 0.02 | J209: 0 | K209: 0 | L209: 0 | M209: 122 | N209: 49 | O209: 7 | P209: 9.4 | Q209: 31.6 | R209: 0.78 | S209: 0 | T209: 6.18 | U209: 0
A210: Пром. | B210: Хлеб пшеничный | C210: 20 | D210: 1.52 | E210: 0.16 | F210: 9.84 | G210: 46.9 | H210: 0.02 | I210: 0.01 | J210: 0 | K210: 0 | L210: 0 | M210: 100 | N210: 19 | O210: 4 | P210: 3 | Q210: 13 | R210: 0.2 | S210: 0.64 | T210: 1.2 | U210: 2.9
B211: Итого за завтрак | C211: =SUM(C206:C210) -> 597 | D211: =SUM(D206:D210) -> 7.62 | E211: =SUM(E206:E210) -> 13.36 | F211: 59.54 | G211: 390.2 | H211: 0.16 | I211: 0.04 | J211: 0.68 | K211: 0 | L211: 11.26 | M211: 223.26 | N211: 98.23 | O211: 147.4 | P211: 67.86 | Q211: 163.62 | R211: 4.35 | S211: 0.65 | T211: 7.4 | U211: 3.6
B212: Обед | C212: 11-18
A213: 54-7з-2020 | B213: Салат из белокочанной капусты с растительным маслом | C213: 60 | D213: 1.5 | E213: 6.1 | F213: 6.2 | G213: 85.8 | H213: 0.03 | I213: 0.04 | J213: 122.25 | K213: 0 | L213: 34.78 | M213: 88.69 | N213: 247.73 | O213: 40.39 | P213: 15.18 | Q213: 30.31 | R213: 0.55 | S213: 10.73 | T213: 0.26 | U213: 12.66
A214: 54-4г-2020 | B214: Каша гречневая рассыпчатая | C214: 180 | D214: 9.87 | E214: 7.61 | F214: 43.12 | G214: 280.5 | H214: 0.26 | I214: 0.14 | J214: 23.02 | K214: 0.11 | L214: 0 | M214: 180 | N214: 263 | O214: 57 | P214: 144 | Q214: 217 | R214: 4.8 | S214: 26.73 | T214: 4.3 | U214: 19.27
A215: 54-7р-2020 | B215: Рыба припущенная в молоко | C215: 70/30 | D215: 8.06 | E215: 4.42 | F215: 2.89 | G215: 131.6 | H215: 0.08 | I215: 0.11 | J215: 9.02 | K215: 0.16 | L215: 1 | M215: 111 | N215: 347 | O215: 68 | P215: 44 | Q215: 202 | R215: 0.7 | S215: 133.48 | T215: 11.9 | U215: 572.6
A216: 54-1хн-2020 | B216: Компот из смеси сухофруктов | C216: 200 | D216: 0.47 | E216: 0 | F216: 14.78 | G216: 65 | H216: 0 | I216: 0 | J216: 15 | K216: 0 | L216: 0 | M216: 0 | N216: 0 | O216: 108 | P216: 2 | Q216: 4 | R216: 0.1 | S216: 0 | T216: 0 | U216: 0
... 48 more rows
